bitfinex/quotes_SOLUSD_20250930
["timestamp","ask_amount","ask_price","bid_price","bid_amount"]
[1759222817520,0.7,208.27,208.23,0.66]
[1759222819752,7.01866487,208.29,208.23,4.80216718]
[1759222819961,33.64,208.28,208.24,0.66]
[1759222820339,0.7,208.27,208.24,0.66]
[1759222820526,0.7,208.27,208.23,4.80216718]
[1759222820728,0.7,208.27,208.23,5.46216718]
[1759222820929,0.7,208.26,208.23,4.80216718]
[1759222821460,23.71760733,208.25,208.19,0.66]
[1759222821845,33.64,208.24,208.19,0.66]
[1759222822268,34.35,208.24,208.2,0.71]
[1759222822438,0.71,208.24,208.18,16.81236976]
[1759222822640,54.44,208.25,208.21,0.71]
[1759222822946,55.15,208.25,208.21,5.51275129]
[1759222823148,55.15,208.25,208.21,0.71]
[1759222823344,0.71,208.24,208.21,0.71]
[1759222823646,54.44,208.25,208.2,4.80307357]
[1759222823647,0.71,208.23,208.2,4.80307357]
[1759222825562,0.71,208.23,208.18,12.0088385]
[1759222825563,0.71,208.23,208.18,16.8123739]
[1759222825862,55.15,208.25,208.2,0.71]
[1759222826064,0.71,208.24,208.2,0.71]
[1759222826826,0.71,208.24,208.18,16.8123739]
[1759222826967,33.64,208.25,208.21,0.71]
[1759222827273,34.35,208.25,208.21,0.71]
[1759222827671,34.35,208.25,208.21,5.51282631]
[1759222828870,33.64,208.25,208.22,0.71]
[1759222829070,33.64,208.26,208.23,0.71]
[1759222829366,20.8,208.24,208.23,0.71]
[1759222829672,34.35,208.26,208.23,0.71]
[1759222829871,34.35,208.26,208.22,4.80254525]
[1759222830075,34.35,208.26,208.22,5.51254525]
[1759222831382,0.71,208.26,208.22,5.51254525]
[1759222831553,20.8,208.28,208.23,0.71]
[1759222831741,33.64,208.29,208.23,0.71]
[1759222833977,33.64,208.29,208.24,4.80215136]
[1759222834150,33.64,208.29,208.25,0.71]
[1759222834351,34.35,208.29,208.25,0.71]
[1759222834962,3.2028357,208.31,208.26,4.80169019]
[1759222835279,34.35,208.3,208.26,5.51169019]
[1759222835474,34.35,208.3,208.27,0.71]
[1759222835677,34.35,208.3,208.26,4.80169019]
[1759222835852,0.71,208.29,208.26,4.80169019]
[1759222836051,0.71,208.28,208.26,4.80169019]
[1759222836773,34.35,208.3,208.26,4.80169019]
[1759222836975,0.71,208.29,208.25,4.80192076]
[1759222837161,0.71,208.29,208.25,5.51192076]
[1759222837682,0.71,208.29,208.25,4.80192076]
[1759222837850,0.71,208.29,208.26,0.71]
[1759222838180,0.71,208.29,208.27,4.80145964]
[1759222839060,34.35,208.31,208.27,4.80145964]
[1759222839258,0.71,208.31,208.27,5.51145964]
[1759222839575,34.35,208.31,208.27,5.51145964]
[1759222840082,33.64,208.32,208.28,0.71]
[1759222840384,33.64,208.32,208.29,4.8009986]
[1759222840681,33.64,208.34,208.3,0.71]
[1759222841189,2.21760733,208.35,208.31,0.71]
[1759222841386,35.85760733,208.35,208.31,0.71]
[1759222841686,0.71,208.34,208.31,0.71]
[1759222841979,0.71,208.34,208.29,17.51349511]
[1759222842180,0.71,208.34,208.3,0.71]
[1759222842353,0.71,208.34,208.31,4.80053766]
[1759222843050,33.64,208.35,208.31,5.51053766]
[1759222843254,0.71,208.34,208.31,4.80053766]
[1759222843677,3.91295841,208.36,208.29,4.80079112]
[1759222843880,0.71,208.35,208.3,0.71]
[1759222844172,0.71,208.35,208.31,0.71]
[1759222844474,0.71,208.34,208.31,5.51037088]
[1759222844677,0.71,208.34,208.31,4.80037088]
[1759222844852,0.71,208.38,208.32,0.71]
[1759222846172,0.71,208.38,208.33,4.8000768]
[1759222846379,0.71,208.38,208.33,5.5100768]
[1759222846573,0.71,208.38,208.34,0.71]
[1759222846759,0.71,208.37,208.33,4.8000768]
[1759222846961,2.21760733,208.38,208.33,0.71]
[1759222847176,0.71,208.36,208.32,4.80028263]
[1759222847479,0.71,208.36,208.32,5.51028263]
[1759222847978,0.71,208.35,208.3,4.80076615]
[1759222848174,40.65705744,208.36,208.3,4.80076615]
[1759222848473,0.71,208.35,208.3,4.80076615]
[1759222848678,0.71,208.34,208.3,5.51076615]
[1759222848862,0.71,208.34,208.3,4.80076615]
[1759222849072,35.85760733,208.36,208.31,0.71]
[1759222849375,34.35,208.36,208.31,0.71]
[1759222849571,0.71,208.35,208.31,0.71]
[1759222850554,0.71,208.34,208.31,0.71]
[1759222850958,0.71,208.34,208.29,4.8009986]
[1759222851160,34.33,208.36,208.31,4.80053766]
[1759222852077,34.33,208.36,208.32,0.7]
[1759222852682,0.68,208.35,208.31,4.80053766]
[1759222852881,0.68,208.35,208.31,5.50053766]
[1759222853673,0.68,208.35,208.32,0.7]
[1759222853978,0.68,208.35,208.31,4.80053766]
[1759222854280,0.68,208.35,208.31,5.50053766]
[1759222855088,0.68,208.34,208.29,5.5009986]
[1759222855276,0.68,208.34,208.3,0.7]
[1759222855472,34.3,208.36,208.31,0.7]
[1759222855680,33.62,208.36,208.31,0.7]
[1759222855879,0.68,208.35,208.31,0.7]
[1759222857287,0.68,208.35,208.31,5.50036738]
[1759222857591,0.68,208.35,208.32,0.7]
[1759222858088,33.62,208.36,208.33,0.7]
[1759222858678,34.3,208.36,208.31,4.80036738]
[1759222858882,2.0979285,208.35,208.29,0.7]
[1759222860269,2.0979285,208.35,208.29,5.5009986]
[1759222860680,0.68,208.35,208.29,5.5009986]
[1759222860876,0.68,208.35,208.3,0.7]
[1759222861072,1.4179285,208.32,208.28,14.47434376]
[1759222861297,1.4179285,208.29,208.22,0.7]
[1759222861466,35.7179285,208.28,208.22,0.7]
[1759222862169,35.7179285,208.28,208.23,4.80238198]
[1759222862368,1.4179285,208.26,208.19,0.7]
[1759222862679,1.4179285,208.24,208.2,4.80306236]
[1759222862882,0.68,208.23,208.2,4.80306236]
[1759222863087,1.4179285,208.24,208.2,5.50306236]
[1759222863286,0.68,208.24,208.2,5.50306236]
[1759222863688,6.21987687,208.25,208.2,4.80306236]
[1759222863899,0.68,208.23,208.2,4.80306236]
[1759222864386,0.68,208.22,208.19,14.48060098]
[1759222864789,0.68,208.22,208.18,4.8033751]
[1759222864971,0.68,208.22,208.18,5.5033751]
[1759222865704,0.68,208.21,208.17,30.1]
[1759222865910,34.3,208.2,208.17,30.1]
[1759222866203,1.4179285,208.18,208.17,30.1]
[1759222866382,2.0979285,208.18,208.17,30.1]
[1759222866884,35.7179285,208.18,208.17,30.1]
[1759222867472,40.5214639,208.18,208.17,30.1]
[1759222869712,54.11705791,208.18,208.17,30.1]
[1759222872802,54.11705791,208.18,208.17,5.30610821]
[1759222873600,54.11705791,208.18,208.16,0.1]
[1759222873601,40.5214639,208.18,208.16,0.1]
[1759222873798,1.4179285,208.17,208.16,1e-08]
[1759222873967,35.0579285,208.17,208.15,1e-08]
[1759222874171,20.8,208.15,208.14,1e-08]
[1759222874380,22.2179285,208.15,208.14,1e-08]
[1759222874712,20.0,208.01,208.0,13.29331859]
[1759222874872,40.8,207.97,207.87,2.51377738]
[1759222875074,7.7696425,208.01,207.87,2.51377738]
[1759222875075,23.62,207.96,207.87,2.51377738]
[1759222875399,20.8,207.92,207.85,0.7]
[1759222875695,34.6,207.95,207.83,0.68]
[1759222875696,1.4179285,207.87,207.83,0.68]
[1759222875878,1.4179285,207.87,207.78,8.38802297]
[1759222875879,33.96,207.87,207.84,0.68]
[1759222876197,20.8,207.95,207.84,0.68]
[1759222876497,33.98,207.94,207.84,0.68]
[1759222876695,22.2179285,207.96,207.84,0.68]
[1759222876869,13.59559401,207.98,207.85,13.59559401]
[1759222877195,23.74,207.97,207.87,13.59559401]
[1759222877410,37.33559401,207.98,207.88,0.68]
[1759222877578,23.74,207.98,207.88,0.68]
[1759222877776,14.27559401,208.04,207.89,16.83582663]
[1759222878088,34.02,208.03,207.9,14.27559401]
[1759222878284,34.02,208.02,207.91,0.68]
[1759222878797,3.77206898,208.04,207.92,14.4602704]
[1759222878985,34.02,208.04,207.93,14.27559401]
[1759222879167,34.02,208.04,207.94,0.68]
[1759222879372,37.79206898,208.04,207.94,0.68]
[1759222879586,34.02,208.04,207.94,0.68]
[1759222879794,34.02,208.04,207.95,16.83096898]
[1759222880005,43.27887961,208.04,207.96,0.68]
[1759222880190,3.77206898,208.03,207.96,0.68]
[1759222880394,24.57206898,208.01,207.93,4.80920001]
[1759222880599,20.8,208.01,207.94,0.68]
[1759222880784,24.57206898,208.01,207.94,0.68]
[1759222881112,20.8,208.01,207.94,0.68]
[1759222881771,34.02,208.01,207.95,4.80884828]
[1759222881978,0.69,208.06,207.96,0.68]
[1759222882178,34.04,208.02,207.96,0.68]
[1759222883006,3.77206898,208.01,207.93,4.80910124]
[1759222883224,3.77206898,208.0,207.93,5.48910124]
[1759222883526,24.57206898,207.99,207.91,0.68]
[1759222883706,3.77206898,207.98,207.91,0.68]
[1759222883895,34.04,207.97,207.91,0.68]
[1759222885318,34.04,207.97,207.91,5.48973296]
[1759222887815,34.04,207.97,207.91,4.80973296]
[1759222888014,34.04,207.97,207.92,0.68]
[1759222888219,0.69,207.96,207.91,4.80973296]
[1759222888524,0.69,207.95,207.89,4.81016368]
[1759222889299,38.84842867,207.97,207.88,0.68]
[1759222889523,24.57206898,207.94,207.86,0.68]
[1759222889916,25.26206898,207.94,207.86,5.49076819]
[1759222890101,21.49,207.94,207.86,5.49076819]
[1759222890303,34.02,207.93,207.86,5.49076819]
[1759222891404,34.02,207.93,207.87,0.68]
[1759222891639,20.8,207.93,207.87,0.68]
[1759222891929,34.02,207.93,207.88,4.81046757]
[1759222892149,21.49,207.95,207.89,0.68]
[1759222892304,34.02,207.93,207.89,0.68]
[1759222892646,34.02,207.93,207.88,4.81046757]
[1759222892801,34.02,207.93,207.89,0.68]
[1759222893217,20.8,207.94,207.89,0.68]
[1759222893418,0.69,207.98,207.9,0.68]
[1759222893712,32.98,207.97,207.9,0.68]
[1759222893925,21.49,207.98,207.91,4.80977345]
[1759222894104,34.02,207.96,207.91,5.48977345]
[1759222894302,34.02,207.96,207.89,4.8100563]
[1759222894524,4.46206898,207.95,207.88,4.81044657]
[1759222894810,4.46206898,207.94,207.86,19.95519699]
[1759222894999,0.69,207.93,207.86,5.49074339]
[1759222895611,21.49,207.93,207.86,5.49074339]
[1759222896315,34.02,207.92,207.86,5.49074339]
[1759222896718,34.02,207.91,207.86,5.49074339]
[1759222897226,34.02,207.91,207.87,0.68]
[1759222897424,0.69,207.91,207.86,4.81074339]
[1759222897722,34.71,207.91,207.86,5.49074339]
[1759222898227,34.02,207.91,207.87,0.68]
[1759222898401,34.0,207.93,207.87,0.68]
[1759222898606,34.0,207.93,207.85,16.83872548]
[1759222898837,34.0,207.93,207.88,0.68]
[1759222899017,34.0,207.93,207.89,0.68]
[1759222899319,26.29886623,207.95,207.89,0.68]
[1759222899528,34.02,207.94,207.89,0.68]
[1759222899921,34.71,207.94,207.89,0.68]
[1759222900128,34.02,207.93,207.89,0.68]
[1759222900434,34.02,207.93,207.89,5.49009494]
[1759222900638,34.0,207.93,207.89,5.49009494]
[1759222900820,20.8,207.96,207.9,0.68]
[1759222901138,34.69,207.95,207.9,0.68]
[1759222901310,0.69,207.94,207.89,4.81009494]
[1759222901510,34.0,207.95,207.9,0.68]
[1759222901886,34.69,207.95,207.9,0.68]
[1759222902136,0.69,207.94,207.89,4.81009494]
[1759222902337,0.69,207.94,207.85,16.83906662]
[1759222902538,34.0,207.95,207.89,0.68]
[1759222902911,34.69,207.95,207.89,0.68]
[1759222903216,0.69,207.95,207.89,0.68]
[1759222903546,34.0,207.94,207.89,0.68]
[1759222903839,34.69,207.94,207.89,0.68]
[1759222904137,34.0,207.94,207.9,0.68]
[1759222904352,34.0,207.94,207.91,4.80977345]
[1759222904835,34.0,207.94,207.9,0.68]
[1759222905040,0.69,207.93,207.86,14.4644536]
[1759222905423,0.69,207.93,207.86,15.1444536]
[1759222905633,34.69,207.93,207.86,15.1444536]
[1759222906026,34.69,207.93,207.87,5.49069899]
[1759222907238,0.69,207.92,207.87,4.81069899]
[1759222907544,0.69,207.91,207.87,4.81069899]
[1759222907740,0.69,207.9,207.87,4.81069899]
[1759222907943,0.69,207.9,207.85,16.83870706]
[1759222908251,0.69,207.89,207.83,19.95796746]
[1759222908551,0.69,207.88,207.83,4.81142135]
[1759222908748,34.69,207.88,207.83,4.81142135]
[1759222908943,0.69,207.91,207.84,0.68]
[1759222909148,34.0,207.9,207.84,0.68]
[1759222909339,0.69,207.89,207.83,4.81142135]
[1759222909538,0.69,207.88,207.83,4.81142135]
[1759222909846,34.69,207.9,207.84,0.68]
[1759222910050,34.0,207.89,207.85,4.81116189]
[1759222910364,34.69,207.89,207.83,4.81162488]
[1759222911035,0.69,207.89,207.83,4.81162488]
[1759222911252,4.80977983,207.91,207.81,5.49208796]
[1759222911253,34.69,207.88,207.81,5.49208796]
[1759222911451,0.69,207.87,207.81,4.81208796]
[1759222911738,0.66,207.86,207.81,4.81208796]
[1759222912056,0.66,207.85,207.8,4.81231953]
[1759222912252,0.66,207.84,207.79,5.49246322]
[1759222912457,34.66,207.84,207.79,5.49246322]
[1759222913462,34.0,207.84,207.77,4.81301439]
[1759222913666,0.66,207.83,207.77,17.52555036]
[1759222913866,34.0,207.84,207.78,0.68]
[1759222914978,0.66,207.83,207.77,16.84555036]
[1759222915144,34.0,207.84,207.79,0.68]
[1759222915341,34.66,207.84,207.79,0.68]
[1759222915548,34.0,207.84,207.81,4.81208796]
[1759222915777,39.059564,207.89,207.82,0.68]
[1759222916065,0.66,207.83,207.74,0.68]
[1759222916742,2.88684611,207.83,207.74,0.68]
[1759222916945,0.66,207.83,207.74,0.68]
[1759222917163,5.4717575,207.83,207.75,4.81347773]
[1759222917365,0.66,207.82,207.75,4.81347773]
[1759222917550,0.66,207.81,207.75,4.81347773]
[1759222918069,2.22684611,207.79,207.75,4.81347773]
[1759222918242,2.88684611,207.79,207.75,4.81347773]
[1759222918752,2.22684611,207.78,207.75,4.81347773]
[1759222920051,2.22684611,207.8,207.76,0.68]
[1759222920266,0.66,207.79,207.75,4.81347773]
[1759222920569,0.66,207.79,207.74,0.68]
[1759222920570,2.22684611,207.78,207.72,0.68]
[1759222920996,0.66,207.77,207.72,4.81417292]
[1759222921195,2.88684611,207.76,207.72,4.81417292]
[1759222921486,38.85262988,207.79,207.72,4.81417292]
[1759222921487,34.04,207.79,207.72,4.81417292]
[1759222921693,2.22684611,207.76,207.72,5.49417292]
[1759222921897,34.06,207.79,207.73,0.68]
[1759222922077,36.28684611,207.79,207.73,0.68]
[1759222922277,36.28684611,207.79,207.72,16.84960523]
[1759222922278,2.22684611,207.77,207.72,4.81417292]
[1759222922484,2.88684611,207.77,207.72,5.49417292]
[1759222922868,2.22684611,207.77,207.73,0.68]
[1759222923063,36.30684611,207.79,207.74,0.68]
[1759222923273,36.30684611,207.79,207.75,0.68]
[1759222923489,34.08,207.79,207.75,0.68]
[1759222923696,2.22684611,207.82,207.76,0.68]
[1759222923869,2.88684611,207.82,207.76,0.68]
[1759222924073,2.22684611,207.8,207.72,12.03543231]
[1759222924298,2.88684611,207.79,207.73,0.68]
[1759222924603,0.66,207.79,207.73,0.68]
[1759222924970,2.88684611,207.79,207.74,4.81370944]
[1759222925169,21.46,207.81,207.75,0.68]
[1759222925677,2.22684611,207.8,207.75,0.68]
[1759222925896,2.88684611,207.8,207.75,0.68]
[1759222926078,2.22684611,207.81,207.76,0.68]
[1759222926273,2.88684611,207.81,207.76,0.68]
[1759222926580,36.30684611,207.82,207.77,0.68]
[1759222927102,36.30684611,207.82,207.74,16.84798305]
[1759222927103,36.30684611,207.82,207.78,0.68]
[1759222927304,34.08,207.82,207.78,0.68]
[1759222928203,36.30684611,207.82,207.76,0.68]
[1759222928419,2.22684611,207.81,207.76,0.68]
[1759222929110,0.66,207.81,207.78,4.81278275]
[1759222929790,2.88684611,207.83,207.78,5.49278275]
[1759222930111,0.66,207.82,207.78,17.52473962]
[1759222930815,20.8,207.86,207.78,16.84473962]
[1759222930995,36.28684611,207.85,207.79,0.68]
[1759222931185,0.66,207.89,207.8,16.84311837]
[1759222931389,2.22684611,207.88,207.81,0.68]
[1759222931984,34.72,207.89,207.81,0.68]
[1759222932413,2.22684611,207.88,207.82,4.81185641]
[1759222932710,2.88684611,207.88,207.82,4.81185641]
[1759222933083,0.66,207.88,207.82,4.81185641]
[1759222933289,0.66,207.87,207.82,4.81185641]
[1759222933500,0.66,207.87,207.82,5.49185641]
[1759222934416,0.66,207.86,207.77,17.52517439]
[1759222934620,2.22684611,207.83,207.77,4.81301439]
[1759222934918,2.88684611,207.82,207.77,4.81301439]
[1759222935093,34.06,207.85,207.76,4.8132375]
[1759222935094,0.66,207.81,207.76,4.8132375]
[1759222935482,0.66,207.81,207.76,5.4932375]
[1759222937529,2.22684611,207.81,207.76,4.8132375]
[1759222937716,2.93684611,207.8,207.72,0.71]
[1759222938099,36.26684611,207.79,207.72,0.71]
[1759222938299,2.22684611,207.76,207.69,0.71]
[1759222938525,34.75,207.79,207.71,0.71]
[1759222938699,54.86,207.78,207.71,0.71]
[1759222939398,57.79684611,207.78,207.71,0.71]
[1759222939604,57.79684611,207.78,207.72,4.81417292]
[1759222939804,55.57,207.78,207.72,4.81417292]
[1759222940016,34.06,207.79,207.73,0.71]
[1759222940730,37.01684611,207.8,207.73,0.71]
[1759222940905,0.24067,207.76,207.74,4.81370944]
[1759222941107,0.24067,207.76,207.74,5.52370944]
[1759222941323,0.24067,207.76,207.74,4.81370944]
[1759222941830,0.24067,207.76,207.75,0.66]
[1759222942006,0.24067,207.76,207.74,4.81370944]
[1759222942502,0.24067,207.76,207.74,5.47370944]
[1759222942903,0.24067,207.76,207.75,0.66]
[1759222943204,0.24067,207.76,207.75,5.47347773]
[1759222943406,0.24067,207.76,207.75,4.81347773]
[1759222943931,0.24067,207.76,207.75,5.47347773]
[1759222944610,0.24067,207.76,207.75,4.81347773]
[1759222945128,0.24067,207.76,207.72,4.81417292]
[1759222945341,0.95067,207.76,207.72,4.81417292]
[1759222945632,0.24067,207.76,207.72,5.47417292]
[1759222945805,0.24067,207.76,207.73,0.66]
[1759222945999,0.95067,207.76,207.72,4.81417292]
[1759222947428,0.95067,207.76,207.72,0.66]
[1759222947802,0.71,207.75,207.71,4.81440469]
[1759222948117,0.71,207.75,207.71,5.47440469]
[1759222948315,0.24067,207.76,207.71,4.81440469]
[1759222948525,0.95067,207.76,207.71,5.47440469]
[1759222948905,2.93684611,207.75,207.7,0.1]
[1759222949105,2.22684611,207.74,207.7,0.1]
[1759222949616,0.71,207.73,207.7,0.1]
[1759222950020,2.93684611,207.72,207.7,0.1]
[1759222950217,2.93684611,207.71,207.7,0.1]
[1759222950620,23.73684611,207.71,207.7,0.1]
[1759222951656,2.93684611,207.71,207.7,0.1]
[1759222952736,0.71,207.71,207.7,0.1]
[1759222952938,2.93684611,207.71,207.7,0.1]
[1759222953135,36.97684611,207.71,207.7,0.1]
[1759222953338,2.93684611,207.71,207.7,0.1]
[1759222953655,36.97684611,207.71,207.7,0.1]
[1759222954028,41.7912508,207.71,207.7,0.1]
[1759222954225,20.8,207.68,207.53,0.1]
[1759222954529,20.8,207.68,207.57,0.66]
[1759222954530,34.89,207.67,207.57,0.66]
[1759222954858,20.8,207.68,207.57,0.66]
[1759222954859,34.18,207.66,207.57,0.66]
[1759222955024,23.02684611,207.68,207.57,0.66]
[1759222955224,28.6,207.67,207.59,20.8]
[1759222955539,2.22684611,207.66,207.61,12.04180916]
[1759222955927,2.22684611,207.66,207.62,0.66]
[1759222956250,2.22684611,207.66,207.63,0.66]
[1759222956435,2.22684611,207.66,207.64,0.66]
[1759222957228,34.2,207.7,207.64,0.66]
[1759222957533,2.22684611,207.66,207.64,5.47582116]
[1759222957838,2.22684611,207.66,207.65,0.66]
[1759222958737,2.22684611,207.66,207.63,4.81623867]
[1759222959064,2.22684611,207.66,207.64,0.66]
[1759222959742,2.22684611,207.66,207.64,5.47579971]
[1759222960653,2.22684611,207.66,207.65,0.66]
[1759222960852,34.89,207.71,207.65,0.66]
[1759222960853,2.22684611,207.67,207.65,0.66]
[1759222961249,2.22684611,207.67,207.64,4.81579971]
[1759222961439,2.22684611,207.67,207.65,0.66]
[1759222961640,2.22684611,207.67,207.66,5.4755639]
[1759222961983,34.18,207.72,207.66,0.66]
[1759222962153,2.22684611,207.67,207.66,0.66]
[1759222962364,34.18,207.72,207.66,0.66]
[1759222962665,2.22684611,207.67,207.66,0.66]
[1759222963871,2.22684611,207.67,207.64,0.66]
[1759222964042,2.22684611,207.65,207.61,0.66]
[1759222964374,0.71,207.66,207.61,0.66]
[1759222964375,2.22684611,207.62,207.61,0.66]
[1759222965070,0.71,207.66,207.62,4.81649166]
[1759222965377,2.22684611,207.63,207.62,5.47649166]
[1759222965677,0.71,207.68,207.62,5.47649166]
[1759222965969,35.37478563,207.73,207.62,16.85772082]
[1759222966180,2.22684611,207.65,207.63,0.66]
[1759222966353,2.22684611,207.65,207.64,0.66]
[1759222966743,2.22684611,207.65,207.62,17.51772082]
[1759222967164,2.22684611,207.65,207.63,0.66]
[1759222967357,2.22684611,207.65,207.64,0.66]
[1759222967956,0.71,207.69,207.64,0.66]
[1759222968178,2.22684611,207.65,207.64,0.66]
[1759222968363,2.22684611,207.65,207.59,79.04590325]
[1759222968364,2.22684611,207.65,207.6,4.81695568]
[1759222968673,2.22684611,207.62,207.6,4.81695568]
[1759222968876,2.22684611,207.62,207.6,5.47695568]
[1759222969169,7.04195989,207.68,207.6,4.81695568]
[1759222969378,2.22684611,207.61,207.6,5.47695568]
[1759222969960,2.22684611,207.63,207.6,5.47695568]
[1759222970681,2.22684611,207.61,207.56,19.38546966]
[1759222970973,2.22684611,207.57,207.56,19.38546966]
[1759222972373,2.88684611,207.57,207.56,19.38546966]
[1759222972549,2.22684611,207.57,207.56,19.38546966]
[1759222972955,23.02684611,207.57,207.56,19.38546966]
[1759222973472,20.8,207.58,207.56,19.38546966]
[1759222973852,0.66,207.6,207.56,19.38546966]
[1759222974052,0.66,207.59,207.56,19.38546966]
[1759222974263,0.66,207.6,207.56,24.20329795]
[1759222974467,2.22684611,207.59,207.56,24.85329795]
[1759222975771,2.22684611,207.59,207.57,0.65]
[1759222975976,2.22684611,207.59,207.56,24.20329795]
[1759222976175,2.22684611,207.59,207.57,0.65]
[1759222976381,2.22684611,207.6,207.57,0.65]
[1759222976586,0.66,207.62,207.58,4.81741978]
[1759222976788,2.22684611,207.6,207.58,4.81741978]
[1759222978191,2.22684611,207.6,207.57,5.4676091]
[1759222978359,1.4282321,207.61,207.57,5.4676091]
[1759222978878,2.0882321,207.61,207.57,5.4676091]
[1759222979759,1.4282321,207.61,207.57,5.4676091]
[1759222980289,1.4282321,207.61,207.58,0.65]
[1759222980461,34.12,207.66,207.58,0.65]
[1759222980666,1.4282321,207.65,207.58,0.65]
[1759222980870,34.12,207.66,207.58,0.65]
[1759222981375,35.5482321,207.66,207.58,0.65]
[1759222981976,1.4282321,207.66,207.59,16.86015703]
[1759222982176,34.12,207.66,207.6,0.65]
[1759222983191,57.0082321,207.68,207.6,0.65]
[1759222983763,1.4282321,207.67,207.6,0.65]
[1759222983979,2.0882321,207.68,207.6,0.65]
[1759222984184,34.78,207.68,207.61,16.85853282]
[1759222984385,34.78,207.68,207.62,0.65]
[1759222984569,36.2082321,207.68,207.62,0.65]
[1759222986210,36.2082321,207.68,207.62,5.46635041]
[1759222987095,2.0882321,207.68,207.62,17.50757957]
[1759222987398,2.0882321,207.68,207.63,0.65]
[1759222988099,1.4282321,207.68,207.63,0.65]
[1759222988268,0.66,207.67,207.62,4.81635041]
[1759222988464,1.4282321,207.63,207.56,19.38546966]
[1759222988677,2.0882321,207.62,207.56,24.85330747]
[1759222988874,0.66,207.62,207.56,24.85330747]
[1759222989089,0.66,207.62,207.57,0.65]
[1759222989371,1.4282321,207.63,207.58,0.65]
[1759222989579,2.0882321,207.63,207.58,0.65]
[1759222989906,2.0882321,207.63,207.59,0.65]
[1759222990066,2.0882321,207.62,207.56,20.03546966]
[1759222990269,1.4282321,207.61,207.56,20.03546966]
[1759222990494,2.0882321,207.61,207.56,20.03546966]
[1759222990665,1.4282321,207.59,207.56,19.38546966]
[1759222990868,1.4282321,207.6,207.56,19.38546966]
[1759222991094,2.0882321,207.6,207.56,19.38546966]
[1759222991286,5.47698163,207.6,207.56,19.38546966]
[1759222992379,2.0882321,207.62,207.56,24.85329793]
[1759222992584,36.1882321,207.62,207.56,24.85329793]
[1759222993188,41.00472569,207.62,207.56,24.85329793]
[1759222994280,1.4282321,207.61,207.56,24.85329793]
[1759222994478,3.18407293,207.64,207.57,0.65]
[1759222994670,1.4282321,207.64,207.57,0.65]
[1759222994875,2.0882321,207.65,207.57,0.65]
[1759222995093,1.4282321,207.64,207.57,0.65]
[1759222995297,2.0882321,207.63,207.57,0.65]
[1759222995496,1.4282321,207.62,207.57,0.65]
[1759222995904,2.1082321,207.62,207.57,0.65]
[1759222996476,2.1082321,207.62,207.57,5.46750905]
[1759222996673,1.4282321,207.61,207.57,5.46750905]
[1759222996877,4.81607771,207.64,207.58,0.68]
[1759222997107,1.4282321,207.63,207.58,0.68]
[1759222997281,1.4282321,207.63,207.59,0.68]
[1759222997801,2.1082321,207.64,207.59,0.68]
[1759222998099,0.68,207.63,207.59,0.68]
[1759222998491,0.68,207.63,207.59,5.49715992]
[1759222999004,2.1082321,207.62,207.57,4.81750446]
[1759222999303,0.68,207.61,207.57,4.81750446]
[1759222999520,0.68,207.61,207.57,5.49750446]
[1759222999804,1.4282321,207.6,207.56,19.38546966]
[1759222999999,0.68,207.59,207.56,19.38546966]
[1759223000300,1.4282321,207.6,207.56,24.20334753]
[1759223000505,1.4282321,207.6,207.56,19.38546966]